lending/lending_fUSD_20241228
["ID","MTS","AMOUNT","RATE_DAILY","PERIOD"]
[346917979,1735377046896,-500.0,0.00012898,2]
[346917980,1735377046906,-218.8039518,0.00012898,2]
[346917981,1735377046934,-305.04084068,0.00012898,2]
[346917982,1735377047372,-51.44520752,0.00012898,2]
[346917983,1735377047382,-502.72035879,0.00012898,2]
[346917984,1735377047391,-500.0,0.00012898,2]
[346917985,1735377047400,-500.0,0.00012898,2]
[346917986,1735377047410,-500.0,0.00012898,2]
[346917987,1735377047419,-502.14302375,0.00012898,2]
[346917988,1735377047429,-469.66097683,0.00012898,2]
[346917989,1735377047440,-30.33902317,0.00012898,2]
[346917990,1735377047450,-676.1,0.00012898,2]
[346917991,1735377047463,-502.94226006,0.00012898,2]
[346917992,1735377047476,-500.0,0.00012898,2]
[346917993,1735377047485,-500.0,0.00012898,2]
[346917994,1735377047494,-500.0,0.00012898,2]
[346917995,1735377047503,-886.87,0.00012898,2]
[346917996,1735377047512,-500.0,0.00012898,2]
[346917997,1735377047522,-326.79039677,0.00012898,2]
[346917998,1735377047533,-360.69960323,0.00012898,2]
[346917999,1735377047543,-518.06388456,0.00012898,2]
[346918000,1735377047552,-500.0,0.00012898,2]
[346918001,1735377047562,-500.0,0.00012898,2]
[346918002,1735377047571,-500.0,0.00012898,2]
[346918003,1735377047580,-514.04433373,0.00012898,2]
[346918004,1735377047589,-500.0,0.00012898,2]
[346918005,1735377047598,-500.0,0.00012898,2]
[346918006,1735377047607,-500.0,0.00012898,2]
[346918007,1735377047617,-500.0,0.00012898,2]
[346918008,1735377047626,-500.0,0.00012898,2]
[346918009,1735377047636,-500.0,0.00012898,2]
[346918010,1735377047645,-500.0,0.00012898,2]
[346918011,1735377047655,-500.0,0.00012898,2]
[346918012,1735377047664,-500.0,0.00012898,2]
[346918013,1735377047673,-222.87256645,0.00012898,2]
[346918014,1735377047682,-500.0,0.00012898,2]
[346918015,1735377047691,-500.0,0.00012898,2]
[346918016,1735377047700,-500.0,0.00012898,2]
[346918017,1735377047710,-500.0,0.00012898,2]
[346918018,1735377047719,-500.0,0.00012898,2]
[346918019,1735377047728,-500.0,0.00012898,2]
[346918020,1735377047737,-500.0,0.00012898,2]
[346918021,1735377047746,-500.0,0.00012898,2]
[346918022,1735377047755,-771.77,0.00012898,2]
[346918023,1735377047765,-500.0,0.00012898,2]
[346918024,1735377047774,-500.0,0.00012898,2]
[346918025,1735377047784,-500.0,0.00012898,2]
[346918026,1735377047793,-573.76,0.00012898,2]
[346918027,1735377047803,-510.90079813,0.00012898,2]
[346918028,1735377047812,-500.0,0.00012898,2]
[346918029,1735377047821,-500.0,0.00012898,2]
[346918030,1735377047830,-1647.45,0.00012898,2]
[346918031,1735377048000,-505.77415366,0.00012898,2]
[346918032,1735377048010,-506.73617705,0.00012898,2]
[346918033,1735377048020,-206.40377953,0.00012898,2]
[346918034,1735377048030,-500.0,0.00012898,2]
[346918035,1735377048039,-588.85,0.00012898,2]
[346918036,1735377048049,-500.0,0.00012898,2]
[346918037,1735377048059,-500.0,0.00012898,2]
[346918038,1735377048068,-882.62,0.00012898,2]
[346918039,1735377048078,-500.0,0.00012898,2]
[346918040,1735377048087,-1895.71,0.00012898,2]
[346918041,1735377048097,-500.0,0.00012898,2]
[346918042,1735377048106,-500.0,0.00012898,2]
[346918043,1735377048115,-500.0,0.00012898,2]
[346918044,1735377048125,-500.0,0.00012898,2]
[346918045,1735377048135,-500.0,0.00012898,2]
[346918046,1735377048144,-510.43,0.00012898,2]
[346918047,1735377048153,-500.0,0.00012898,2]
[346918048,1735377048162,-500.0,0.00012898,2]
[346918049,1735377048172,-500.0,0.00012898,2]
[346918050,1735377048181,-1539.91,0.00012898,2]
[346918051,1735377048190,-500.0,0.00012898,2]
[346918052,1735377048199,-500.0,0.00012898,2]
[346918053,1735377048208,-500.0,0.00012898,2]
[346918054,1735377048218,-500.0,0.00012898,2]
[346918055,1735377048227,-500.0,0.00012898,2]
[346918056,1735377048237,-500.0,0.00012898,2]
[346918057,1735377048247,-500.0,0.00012898,2]
[346918058,1735377048256,-500.0,0.00012898,2]
[346918059,1735377048265,-3257.25,0.00012898,2]
[346918060,1735377048275,-500.0,0.00012898,2]
[346918061,1735377048284,-762.5,0.00012898,2]
[346918062,1735377048294,-500.0,0.00012898,2]
[346918063,1735377048303,-1620.0,0.00012898,2]
[346918064,1735377048312,-500.0,0.00012898,2]
[346918065,1735377048322,-503.3,0.00012898,2]
[346918066,1735377048331,-7650.34087487,0.00012898,2]
[346918067,1735377048343,-327.35912513,0.00012898,2]
[346918068,1735377048352,-500.0,0.00012898,2]
[346918069,1735377048362,-826.78,0.00012898,2]
[346918070,1735377048371,-500.0,0.00012898,2]
[346918071,1735377048379,-845.86087487,0.00012898,2]
[346918072,1735377048409,-481.063585,0.00012898,2]
[346918073,1735377048438,-4310.45554013,0.00012898,2]
[346918074,1735377048448,-535.49,0.00012898,2]
[346918075,1735377048457,-2464.01,0.00012898,2]
[346918076,1735377048466,-500.0,0.00012898,2]
[346918077,1735377048475,-500.0,0.00012898,2]
[346918078,1735377048484,-500.0,0.00012898,2]
[346918079,1735377048493,-747.16,0.00012898,2]
[346918080,1735377048503,-500.0,0.00012898,2]
[346918081,1735377048511,-765.95,0.00012898,2]
[346918082,1735377048521,-500.0,0.00012898,2]
[346918083,1735377048530,-2193.75,0.00012898,2]
[346918084,1735377048539,-500.0,0.00012898,2]
[346918085,1735377048548,-598.43,0.00012898,2]
[346918086,1735377048557,-500.0,0.00012898,2]
[346918087,1735377048567,-500.0,0.00012898,2]
[346918088,1735377048576,-9838.94,0.00012898,2]
[346918089,1735377048585,-500.0,0.00012898,2]
[346918090,1735377048594,-1320.28,0.00012898,2]
[346918091,1735377048603,-500.0,0.00012898,2]
[346918092,1735377048613,-513.65676424,0.00012898,2]
[346918093,1735377048622,-871.94,0.00012898,2]
[346918094,1735377048631,-1515.7,0.00012898,2]
[346918095,1735377048641,-500.0,0.00012898,2]
[346918096,1735377048651,-1694.46,0.00012898,2]
[346918097,1735377048661,-500.0,0.00012898,2]
[346918098,1735377048670,-500.0,0.00012898,2]
[346918099,1735377048679,-500.0,0.00012899,2]
[346918100,1735377048689,-632.40184678,0.00012899,2]
[346918101,1735377048698,-186.59250231,0.00012899,2]
[346918102,1735377048708,-500.0,0.00012899,2]
[346918103,1735377048717,-605.12877223,0.00012899,2]
[346918104,1735377048726,-500.0,0.00012899,2]
[346918105,1735377048736,-500.0,0.00012899,2]
[346918106,1735377048745,-203.244116,0.00012899,2]
[346918107,1735377048754,-500.0,0.00012899,2]
[346918108,1735377048763,-500.0,0.00012899,2]
[346918109,1735377048772,-500.0,0.00012899,2]
[346918110,1735377048781,-500.0,0.00012899,2]
[346918111,1735377048790,-500.0,0.00012899,2]
[346918112,1735377048799,-500.0,0.00012899,2]
[346918113,1735377048808,-500.0,0.00012899,2]
[346918114,1735377048817,-500.0,0.00012899,2]
[346918115,1735377048827,-500.0,0.00012899,2]
[346918116,1735377048837,-500.0,0.00012899,2]
[346918117,1735377048846,-500.0,0.00012899,2]
[346918118,1735377048855,-500.0,0.00012899,2]
[346918119,1735377048865,-500.0,0.00012899,2]
[346918120,1735377048875,-500.0,0.00012899,2]
[346918121,1735377048884,-500.0,0.00012899,2]
[346918122,1735377048893,-1011.95,0.00012899,2]
[346918123,1735377048903,-500.0,0.00012899,2]
[346918124,1735377048912,-500.0,0.00012899,2]
[346918125,1735377048921,-500.0,0.00012899,2]
[346918126,1735377048931,-500.0,0.00012899,2]
[346918127,1735377048940,-500.0,0.00012899,2]
[346918128,1735377048949,-500.0,0.00012899,2]
[346918129,1735377048958,-500.0,0.00012899,2]
[346918130,1735377048967,-500.0,0.00012899,2]
[346918131,1735377048976,-500.0,0.00012899,2]
[346918132,1735377048986,-500.0,0.00012899,2]
[346918133,1735377048995,-600.91155859,0.00012899,2]
[346918134,1735377049004,-600.8,0.00012899,2]
[346918135,1735377049013,-500.0,0.00012899,2]
[346918136,1735377049022,-500.0,0.00012899,2]
[346918137,1735377049032,-500.0,0.00012899,2]
[346918138,1735377049041,-500.0,0.00012899,2]
[346918139,1735377049050,-500.0,0.00012899,2]
[346918140,1735377049060,-500.0,0.00012899,2]
[346918141,1735377049068,-500.0,0.00012899,2]
[346918142,1735377049078,-500.0,0.00012899,2]
[346918143,1735377049087,-500.0,0.00012899,2]
[346918144,1735377049097,-641.68,0.00012899,2]
[346918145,1735377049106,-500.0,0.00012899,2]
[346918146,1735377049115,-500.0,0.00012899,2]
[346918147,1735377049124,-500.0,0.00012899,2]
[346918148,1735377049133,-749.18,0.00012899,2]
[346918149,1735377049142,-500.0,0.00012899,2]
[346918150,1735377049152,-500.0,0.00012899,2]
[346918151,1735377049161,-500.0,0.00012899,2]
[346918152,1735377049170,-500.0,0.00012899,2]
[346918153,1735377049179,-500.0,0.00012899,2]
[346918154,1735377049188,-500.0,0.00012899,2]
[346918155,1735377049197,-500.0,0.00012899,2]
[346918156,1735377049206,-500.0,0.00012899,2]
[346918157,1735377049215,-500.0,0.00012899,2]
[346918158,1735377049224,-500.0,0.00012899,2]
[346918159,1735377049233,-509.06,0.00012899,2]
[346918160,1735377049242,-500.0,0.00012899,2]
[346918161,1735377049251,-500.0,0.00012899,2]
[346918162,1735377049260,-500.0,0.00012899,2]
[346918163,1735377049269,-500.0,0.00012899,2]
[346918164,1735377049278,-500.0,0.00012899,2]
[346918165,1735377049287,-500.0,0.00012899,2]
[346918166,1735377049296,-500.0,0.00012899,2]
[346918167,1735377049305,-500.0,0.00012899,2]
[346918168,1735377049314,-500.0,0.00012899,2]
[346918169,1735377049323,-500.0,0.00012899,2]
[346918170,1735377049332,-500.0,0.00012899,2]
[346918171,1735377049341,-500.0,0.00012899,2]
[346918172,1735377049350,-500.0,0.00012899,2]
[346918173,1735377049359,-500.0,0.00012899,2]
[346918174,1735377049368,-500.0,0.00012899,2]
[346918175,1735377049378,-500.0,0.00012899,2]
[346918176,1735377049388,-500.0,0.00012899,2]
[346918177,1735377049398,-500.0,0.00012899,2]
[346918178,1735377049407,-500.0,0.00012899,2]
[346918179,1735377049416,-500.0,0.00012899,2]
[346918180,1735377049426,-500.0,0.00012899,2]
[346918181,1735377049435,-501.94387119,0.00012899,2]
[346918182,1735377049444,-500.0,0.00012899,2]
[346918183,1735377049453,-502.31571829,0.00012899,2]
[346918184,1735377049462,-500.0,0.00012899,2]
[346918185,1735377049471,-500.0,0.00012899,2]
[346918186,1735377049483,-500.0,0.00012899,2]
[346918187,1735377049491,-500.0,0.00012899,2]
[346918188,1735377049501,-500.0,0.00012899,2]
[346918189,1735377049510,-500.0,0.00012899,2]
[346918190,1735377049519,-500.0,0.00012899,2]
[346918191,1735377049528,-500.0,0.00012899,2]
[346918192,1735377049537,-500.0,0.00012899,2]
[346918193,1735377049547,-500.0,0.00012899,2]
[346918194,1735377049555,-500.0,0.00012899,2]
[346918195,1735377049565,-500.0,0.00012899,2]
[346918196,1735377049575,-500.0,0.00012899,2]
[346918197,1735377049586,-500.0,0.00012899,2]
[346918198,1735377049596,-500.0,0.00012899,2]
[346918199,1735377049605,-500.0,0.00012899,2]
[346918200,1735377049614,-515.33,0.00012899,2]
[346918201,1735377049626,-500.0,0.00012899,2]
[346918202,1735377049636,-500.0,0.00012899,2]
[346918203,1735377049645,-523.96,0.00012899,2]
[346918204,1735377049654,-500.0,0.00012899,2]
[346918205,1735377049663,-500.0,0.00012899,2]
[346918206,1735377049671,-500.0,0.00012899,2]
[346918207,1735377049680,-500.0,0.00012899,2]
[346918208,1735377049689,-500.0,0.00012899,2]
[346918209,1735377049698,-500.0,0.00012899,2]
[346918210,1735377049712,-500.0,0.00012899,2]
[346918211,1735377049723,-500.0,0.00012899,2]
[346918212,1735377049734,-500.0,0.00012899,2]
[346918213,1735377049743,-500.0,0.00012899,2]
[346918214,1735377049754,-500.0,0.00012899,2]
[346918215,1735377049764,-504.82778673,0.00012899,2]
[346918216,1735377049774,-500.0,0.00012899,2]
[346918217,1735377049784,-500.0,0.00012899,2]
[346918218,1735377049793,-500.0,0.00012899,2]
[346918219,1735377049803,-500.0,0.00012899,2]
[346918220,1735377049812,-500.0,0.00012899,2]
[346918221,1735377049822,-500.0,0.00012899,2]
[346918222,1735377049831,-500.0,0.00012899,2]
[346918223,1735377049840,-500.0,0.00012899,2]
[346918224,1735377049849,-500.0,0.00012899,2]
[346918225,1735377049859,-500.0,0.00012899,2]
[346918226,1735377049868,-500.0,0.00012899,2]
[346918227,1735377049878,-500.0,0.00012899,2]
[346918228,1735377049887,-530.16,0.00012899,2]
[346918229,1735377049896,-500.0,0.00012899,2]
[346918230,1735377049906,-500.0,0.00012899,2]
[346918231,1735377049915,-500.0,0.00012899,2]
[346918232,1735377049924,-500.0,0.00012899,2]
[346918233,1735377049933,-500.0,0.00012899,2]
[346918234,1735377049943,-500.0,0.00012899,2]
[346918235,1735377049952,-500.0,0.00012899,2]
[346918236,1735377049961,-500.0,0.00012899,2]
[346918237,1735377049970,-500.0,0.00012899,2]
[346918238,1735377049979,-500.0,0.00012899,2]
[346918239,1735377049988,-500.47470057,0.00012899,2]
[346918240,1735377049997,-500.0,0.00012899,2]
[346918241,1735377050007,-502.36600327,0.00012899,2]
[346918242,1735377050016,-501.58987252,0.00012899,2]
[346918243,1735377050026,-500.0,0.00012899,2]
[346918244,1735377050035,-500.0,0.00012899,2]
[346918245,1735377050044,-500.0,0.00012899,2]
[346918246,1735377050054,-500.0,0.00012899,2]
[346918247,1735377050063,-502.06503365,0.00012899,2]
[346918248,1735377050072,-500.0,0.00012899,2]
[346918249,1735377050082,-500.0,0.00012899,2]
[346918250,1735377050091,-500.0,0.00012899,2]
[346918251,1735377050099,-500.0,0.00012899,2]
[346918252,1735377050109,-500.0,0.00012899,2]
[346918253,1735377050118,-500.0,0.00012899,2]
[346918254,1735377050127,-500.0,0.00012899,2]
[346918255,1735377050136,-500.0,0.00012899,2]
[346918256,1735377050145,-500.0,0.00012899,2]
[346918257,1735377050154,-500.62382253,0.00012899,2]
[346918258,1735377050163,-603.03,0.00012899,2]
[346918259,1735377050173,-500.0,0.00012899,2]
[346918260,1735377050182,-500.0,0.00012899,2]
[346918261,1735377050191,-500.0,0.00012899,2]
[346918262,1735377050200,-500.0,0.00012899,2]
[346918263,1735377050210,-500.0,0.00012899,2]
[346918264,1735377050219,-500.0,0.00012899,2]
[346918265,1735377050228,-500.0,0.00012899,2]
[346918266,1735377050237,-500.0,0.00012899,2]
[346918267,1735377050246,-283.06910989,0.00012899,2]
[346918268,1735377050260,-216.93089011,0.00012899,2]
[346918269,1735377050269,-500.0,0.00012899,2]
[346918270,1735377050279,-500.0,0.00012899,2]
[346918271,1735377050288,-470.55716885,0.00012899,2]
[346918273,1735377228342,-193.32194424,0.00015,20]
[346918278,1735377603396,175.0,0.00015,30]
[346918285,1735377800630,1000.0,0.0002001,120]
[346918286,1735377825928,1687.43,9.601e-05,2]
[346918430,1735377903380,175.0,0.00015,30]
[346918431,1735377929304,8164.49954711,9e-05,2]
[346918490,1735378203157,175.0,0.00015,30]
[346918506,1735378231680,-441.22,9.761e-05,2]
[346918507,1735378231691,-74.02829337,0.00010137,2]
[346918508,1735378231703,-133.72170663,0.00010137,2]
[346918509,1735378231712,-414.19774956,0.00010959,2]
[346918510,1735378231753,-50.56281005,0.00010959,2]
[346918511,1735378231765,-164.02,0.00011324,2]
[346918512,1735378231777,-250.0,0.00011346,2]
[346918513,1735378231787,-1000.0,0.00011419,2]
[346918514,1735378231796,-330.18,0.00011435,2]
[346918515,1735378231805,-301.38632853,0.00011477,2]
[346918516,1735378231869,-932.45367147,0.00011477,2]
[346918517,1735378231878,-38.45192853,0.00011511,2]
[346918518,1735378231889,-211.54807147,0.00011511,2]
[346918519,1735378231898,-250.0,0.00011571,2]
[346918520,1735378231907,-1303.22,0.00011601,2]
[346918521,1735378231916,-734.97,0.00011601,2]
[346918522,1735378231925,-150.0,0.00011688,2]
[346918523,1735378231936,-150.0,0.00011688,2]
[346918524,1735378231946,-150.0,0.00011688,2]
[346918525,1735378231954,-150.0,0.00011688,2]
[346918526,1735378231963,-500.0,0.00011972,2]
[346918527,1735378231972,-1100.0,0.00011972,2]
[346918528,1735378231980,-367.94,0.00011972,2]
[346918529,1735378231990,-381.5,0.00011972,2]
[346918530,1735378231999,-441.22,0.00012024,2]
[346918531,1735378232007,-378.56,0.00012171,2]
[346918532,1735378232018,-370.25,0.00012178,2]
[346918533,1735378232027,-380.08,0.00012191,2]
[346918534,1735378232036,-372.27,0.00012213,2]
[346918535,1735378232045,-154.647149,0.0001222,2]
[346918537,1735378232054,-371.33,0.0001225,2]
[346918539,1735378232064,-367.94,0.00012312,2]
[346918541,1735378232073,-150.0,0.00012337,2]
[346918543,1735378232082,-200.0,0.00012342,2]
[346918545,1735378232091,-448.231,0.0001235,2]
[346918547,1735378232101,-151.55,0.00012372,2]
[346918549,1735378232112,-150.2,0.00012372,2]
[346918552,1735378232120,-150.97,0.00012372,2]
[346918555,1735378232130,-151.61,0.00012372,2]
[346918558,1735378232139,-368.95,0.00012415,2]
[346918560,1735378232148,-200.0,0.00012437,2]
[346918562,1735378232157,-150.85,0.00012472,2]
[346918564,1735378232167,-6011.0,0.000125,2]
[346918566,1735378232176,-163.81240348,0.00012599,2]
[346918568,1735378232186,-150.46,0.00012659,2]
[346918570,1735378232195,-500.0,0.00012679,2]
[346918572,1735378232204,-906.27,0.00012679,2]
[346918574,1735378232213,-2679.16,0.00012679,2]
[346918576,1735378232223,-500.0,0.00012679,2]
[346918577,1735378232233,-632.79,0.00012679,2]
[346918578,1735378232242,-1550.41,0.00012679,2]
[346918579,1735378232252,-500.0,0.00012679,2]
[346918580,1735378232261,-500.0,0.00012679,2]
[346918581,1735378232270,-500.0,0.00012679,2]
[346918582,1735378232279,-500.0,0.00012679,2]
[346918583,1735378232288,-500.0,0.00012679,2]
[346918584,1735378232297,-500.0,0.00012679,2]
[346918585,1735378232306,-500.0,0.00012679,2]
[346918586,1735378232315,-500.0,0.00012679,2]
[346918587,1735378232325,-500.0,0.00012679,2]
[346918588,1735378232334,-500.0,0.00012679,2]
[346918589,1735378232343,-500.0,0.00012679,2]
[346918590,1735378232353,-500.0,0.00012679,2]
[346918591,1735378232362,-500.0,0.00012679,2]
[346918592,1735378232372,-772.66,0.00012679,2]
[346918593,1735378232381,-34810.98484398,0.0001268,2]
[346918594,1735378232394,-7882.98789653,0.0001268,2]
[346918595,1735378232405,-8133.05408552,0.0001268,2]
[346918596,1735378232416,-14591.19813767,0.0001268,2]
[346918597,1735378232427,-217972.79818482,0.0001268,2]
[346918598,1735378232438,-1273.05622712,0.0001268,2]
[346918601,1735378237647,-1165.9087451,0.00011319,2]
[346918602,1735378237659,-143.26109354,0.00011319,2]
[346918603,1735378237668,-500.0,0.00012679,2]
[346918604,1735378237677,-500.0,0.00012679,2]
[346918605,1735378237686,-500.0,0.00012679,2]
[346918606,1735378237695,-46332.42059959,0.0001268,2]
[346918607,1735378237727,-1309.16983863,0.00011335,2]
[346918608,1735378237737,-3561.29737115,0.0001268,2]
[346918609,1735378237748,-1006.47835887,0.0001268,2]
[346918610,1735378237825,-963.5,0.0001268,2]
[346918644,1735378239658,-500.0,0.00012679,2]
[346918645,1735378239668,-612.0,0.0001268,2]
[346918646,1735378239680,-42486.08489667,0.0001268,2]
[346918647,1735378239716,-500.0,0.00012679,2]
[346918648,1735378239725,-524.9677062,0.0001268,2]
[346918649,1735378239833,-144488.30072101,0.0001268,2]
[346918650,1735378239842,-500.0,0.00012698,2]
[346918651,1735378239851,-500.0,0.00012698,2]
[346918652,1735378239866,-500.0,0.00012698,2]
[346918653,1735378239876,-221.90989342,0.00012698,2]
[346918654,1735378239885,-4396.31295669,0.00012699,2]
[346918655,1735378239894,-403534.41450249,0.00012699,2]
[346918656,1735378239905,-150.03666279,0.000127,2]
[346918657,1735378239914,-3858.0,0.0001275,2]
[346918658,1735378239923,-150.03666279,0.00012767,2]
[346918659,1735378239936,-10876.69350038,0.00012767,2]
[346918660,1735378239946,-500.0,0.00012773,2]
[346918661,1735378239956,-500.0,0.00012799,2]
[346918662,1735378239966,-500.0,0.00012799,2]
[346918663,1735378239975,-500.0,0.00012799,2]
[346918664,1735378239984,-500.0,0.00012799,2]
[346918665,1735378239994,-500.0,0.00012799,2]
[346918666,1735378240003,-500.0,0.00012799,2]
[346918667,1735378240012,-500.0,0.00012799,2]
[346918668,1735378240022,-500.0,0.00012799,2]
[346918669,1735378240031,-500.0,0.00012799,2]
[346918670,1735378240041,-500.0,0.00012799,2]
[346918671,1735378240051,-500.0,0.00012799,2]
[346918672,1735378240068,-500.0,0.00012799,2]
[346918673,1735378240085,-257.27593786,0.00012799,2]
[346918674,1735378240097,-500.0,0.00012799,2]
[346918675,1735378240112,-500.0,0.00012799,2]
[346918676,1735378240127,-500.0,0.00012799,2]
[346918677,1735378240140,-500.0,0.00012799,2]
[346918678,1735378240156,-500.0,0.00012799,2]
[346918679,1735378240169,-500.0,0.00012799,2]
[346918680,1735378240180,-500.0,0.00012799,2]
[346918681,1735378240193,-500.0,0.00012799,2]
[346918682,1735378240207,-500.0,0.00012799,2]
[346918683,1735378240220,-500.0,0.00012799,2]
[346918684,1735378240233,-500.0,0.00012799,2]
[346918685,1735378240247,-500.0,0.00012799,2]
[346918686,1735378240261,-500.0,0.00012799,2]
[346918687,1735378240275,-500.0,0.00012799,2]
[346918689,1735378240288,-500.0,0.00012799,2]
[346918690,1735378240302,-500.0,0.00012799,2]
[346918691,1735378240316,-500.0,0.00012799,2]
[346918692,1735378240328,-500.0,0.00012799,2]
[346918693,1735378240341,-500.0,0.00012799,2]
[346918694,1735378240354,-500.0,0.00012799,2]
[346918695,1735378240366,-500.0,0.00012799,2]
[346918696,1735378240379,-526.49069125,0.00012799,2]
[346918697,1735378240391,-500.0,0.00012799,2]
[346918698,1735378240403,-507.60796154,0.00012799,2]
[346918699,1735378240414,-574.9695593,0.00012799,2]
[346918700,1735378240425,-500.0,0.00012799,2]
[346918701,1735378240441,-500.0,0.00012799,2]
[346918702,1735378240453,-500.0,0.00012799,2]
[346918703,1735378240462,-500.0,0.00012799,2]
[346918704,1735378240473,-649.31966702,0.00012799,2]
[346918705,1735378240486,-500.0,0.00012799,2]
[346918706,1735378240498,-500.0,0.00012799,2]
[346918707,1735378240510,-500.0,0.00012799,2]
[346918708,1735378240521,-500.0,0.00012799,2]
[346918709,1735378240531,-500.0,0.00012799,2]
[346918710,1735378240542,-500.0,0.00012799,2]
[346918711,1735378240553,-500.0,0.00012799,2]
[346918712,1735378240567,-500.0,0.00012799,2]
[346918713,1735378240578,-500.0,0.00012799,2]
[346918714,1735378240589,-500.0,0.00012799,2]
[346918715,1735378240600,-500.0,0.00012799,2]
[346918716,1735378240611,-500.0,0.00012799,2]
[346918717,1735378240623,-500.0,0.00012799,2]
[346918718,1735378240635,-500.0,0.00012799,2]
[346918719,1735378240646,-500.0,0.00012799,2]
[346918720,1735378240658,-330.08663266,0.00012799,2]
[346918721,1735378240669,-500.0,0.00012799,2]
[346918722,1735378240681,-500.0,0.00012799,2]
[346918723,1735378240692,-507.15250803,0.00012799,2]
[346918724,1735378240703,-500.0,0.00012799,2]
[346918725,1735378240715,-500.0,0.00012799,2]
[346918726,1735378240727,-500.0,0.00012799,2]
[346918727,1735378240738,-500.0,0.00012799,2]
[346918728,1735378240750,-500.0,0.00012799,2]
[346918729,1735378240761,-500.0,0.00012799,2]
[346918730,1735378240772,-500.0,0.00012799,2]
[346918731,1735378240784,-500.0,0.00012799,2]
[346918732,1735378240796,-500.0,0.00012799,2]
[346918733,1735378240807,-505.40557384,0.00012799,2]
[346918734,1735378240818,-478.56513845,0.00012799,2]
[346918735,1735378240829,-500.0,0.00012799,2]
[346918736,1735378240841,-503.10126606,0.00012799,2]
[346918737,1735378240856,-500.0,0.00012799,2]
[346918738,1735378240869,-518.45850387,0.00012799,2]
[346918739,1735378240880,-504.2834957,0.00012799,2]
[346918740,1735378240891,-500.0,0.00012799,2]
[346918741,1735378240906,-500.0,0.00012799,2]
[346918742,1735378240917,-500.0,0.00012799,2]
[346918743,1735378240929,-500.0,0.00012799,2]
[346918744,1735378240940,-500.0,0.00012799,2]
[346918745,1735378240952,-500.0,0.00012799,2]
[346918746,1735378240964,-500.0,0.00012799,2]
[346918747,1735378240975,-500.0,0.00012799,2]
[346918748,1735378240987,-500.0,0.00012799,2]
[346918749,1735378240998,-500.0,0.00012799,2]
[346918750,1735378241010,-500.0,0.00012799,2]
[346918751,1735378241021,-500.0,0.00012799,2]
[346918752,1735378241033,-500.0,0.00012799,2]
[346918753,1735378241045,-500.0,0.00012799,2]
[346918754,1735378241057,-635.3951092,0.00012799,2]
[346918755,1735378241068,-500.0,0.00012799,2]
[346918756,1735378241080,-500.0,0.00012799,2]
[346918757,1735378241092,-500.0,0.00012799,2]
[346918758,1735378241104,-500.0,0.00012799,2]
[346918759,1735378241116,-500.0,0.00012799,2]
[346918760,1735378241128,-500.0,0.00012799,2]
[346918761,1735378241139,-500.0,0.00012799,2]
[346918762,1735378241151,-500.0,0.00012799,2]
[346918763,1735378241163,-500.0,0.00012799,2]